bitfinex-derivatives/quotes_ETHF0:USTF0_20250316
["timestamp","ask_amount","ask_price","bid_price","bid_amount"]
[1742093602627,2.47658,1925.1,1925.0,1.4182]
[1742093604237,3.40944186,1925.1,1925.0,1.4182]
[1742093604834,1.03894,1925.0,1924.9,1.03894]
[1742093605032,2.39434,1925.0,1924.9,1.3161]
[1742093605338,2.39434,1925.0,1924.9,2.35509]
[1742093606436,5.32773186,1925.2,1924.9,4.5239]
[1742093606628,1.3554,1925.1,1925.0,2.35504]
[1742093606935,2.39428,1925.1,1925.0,2.35504]
[1742093607135,1.3554,1925.1,1925.0,2.35504]
[1742093611842,2.39428,1925.1,1925.0,2.35504]
[1742093612936,1.3554,1925.1,1925.0,2.35504]
[1742093618141,1.03894,1925.0,1924.9,1.03899]
[1742093618448,1.03899,1924.9,1924.8,2.4486]
[1742093618643,2.47349,1924.9,1924.8,1.039]
[1742093619137,2.47349,1924.9,1924.6,2.166]
[1742093619342,1.03915,1924.6,1924.5,3.2078]
[1742093619540,1.03911,1924.7,1924.6,1.03915]
[1742093619740,1.03911,1924.7,1924.6,2.47855]
[1742093619945,1.72301,1924.7,1924.6,2.47855]
[1742093620447,2.40211,1924.7,1924.6,1.4394]
[1742093623746,2.40211,1924.7,1924.6,2.47855]
[1742093624345,2.37186,1924.8,1924.7,1.0391]
[1742093624545,1.3328,1924.8,1924.7,3.0294]
[1742093625049,1.3328,1924.8,1924.7,6.2372]
[1742093626547,0.93263414,1925.1,1924.9,1.03895]
[1742093626849,2.34038066,1925.2,1925.0,1.03891]
[1742093627151,1.3438,1925.1,1925.0,1.03891]
[1742093630347,0.68017746,1925.4,1925.3,1.03877]
[1742093630539,0.00777746,1925.4,1925.3,1.03877]
[1742093631546,0.00777746,1925.4,1925.3,4.24657]
[1742093631752,1.45957746,1925.4,1925.3,4.24657]
[1742093632251,1.45957746,1925.4,1925.3,1.03877]
[1742093632552,2.16737746,1925.4,1925.3,1.03877]
[1742093632753,1.03877,1925.3,1925.2,1.03879]
[1742093632950,1.03877,1925.3,1925.1,3.2078]
[1742093632951,3.15367,1925.3,1925.1,4.24664]
[1742093633152,3.15367,1925.3,1925.2,1.03883]
[1742093634552,3.15367,1925.3,1925.1,4.24664]
[1742093634749,1.3728,1925.2,1925.1,4.24664]
[1742093635248,2.41163,1925.2,1925.1,3.2078]
[1742093635554,2.41163,1925.2,1925.1,4.24668]
[1742093635752,2.41163,1925.2,1925.1,1.03888]
[1742093636047,1.3728,1925.2,1925.1,1.03888]
[1742093636664,2.41163,1925.2,1925.1,1.03888]
[1742093636854,1.3728,1925.2,1925.1,1.03888]
[1742093637656,2.41163,1925.2,1925.1,1.03888]
[1742093638047,1.3728,1925.2,1925.1,1.03888]
[1742093638248,2.41163,1925.2,1925.1,1.03888]
[1742093638656,1.3728,1925.2,1925.0,1.03892]
[1742093638955,1.4218,1925.1,1925.0,1.03894]
[1742093639949,2.1251,1925.1,1925.0,1.03894]
[1742093640257,3.16398,1925.1,1925.0,1.03894]
[1742093640857,2.1251,1925.1,1925.0,1.03894]
[1742093641861,3.16398,1925.1,1925.0,1.03894]
[1742093642352,2.1251,1925.1,1925.0,1.03894]
[1742093643461,3.16398,1925.1,1925.0,1.03894]
[1742093644050,1.03884,1925.2,1925.1,1.03886]
[1742093644265,1.4112,1925.2,1925.1,1.03886]
[1742093644466,2.45003,1925.2,1925.1,1.03886]
[1742093644664,1.4112,1925.2,1925.1,1.03886]
[1742093645855,2.45003,1925.2,1925.1,1.70856]
[1742093646754,1.4112,1925.2,1925.1,1.70856]
[1742093647554,2.45003,1925.2,1925.1,1.70856]
[1742093649458,1.4112,1925.2,1925.1,1.70856]
[1742093649965,1.4112,1925.2,1925.1,2.39796]
[1742093650360,1.4112,1925.2,1925.1,5.60576]
[1742093650665,0.00777746,1925.4,1925.3,1.03877]
[1742093651868,1.43197746,1925.4,1925.3,1.03877]
[1742093653961,2.47069746,1925.4,1925.3,1.03877]
[1742093654565,1.43197746,1925.4,1925.3,1.03877]
[1742093656069,1.43197746,1925.4,1925.1,4.5669]
[1742093656070,1.03883,1925.2,1925.1,4.24666]
[1742093656568,1.03883,1925.2,1925.1,1.03888]
[1742093657673,1.03883,1925.2,1925.0,1.0389]
[1742093657974,2.8518,1925.1,1925.0,1.0389]
[1742093658873,3.89068,1925.1,1925.0,1.0389]
[1742093659869,1.03894,1925.0,1924.9,4.24677]
[1742093660062,2.45044,1925.0,1924.9,3.2078]
[1742093660463,1.03901,1924.9,1924.8,1.03903]
[1742093660669,2.45051,1924.9,1924.8,1.03903]
[1742093661379,1.03904,1924.8,1924.7,1.03906]
[1742093661580,2.1189,1924.8,1924.7,1.03906]
[1742093661981,2.1189,1924.8,1924.7,2.40416]
[1742093662184,2.8423,1924.8,1924.7,2.40416]
[1742093667491,2.1349,1924.8,1924.7,2.40416]
[1742093667694,1.4115,1924.8,1924.7,2.40416]
[1742093671199,1.4115,1924.8,1924.7,5.61196]
[1742093675003,1.4115,1924.8,1924.7,2.40416]
[1742093675594,2.45054,1924.8,1924.6,1.03912]
[1742093675905,2.45054,1924.8,1924.7,1.0391]
[1742093676593,2.45054,1924.8,1924.6,1.4197]
[1742093676795,1.4257,1924.7,1924.6,1.03915]
[1742093677198,1.4257,1924.7,1924.6,2.45865]
[1742093678008,2.4648,1924.7,1924.6,1.03915]
[1742093678707,1.4257,1924.7,1924.5,3.2078]
[1742093679001,1.03926,1924.4,1924.3,3.2078]
[1742093679609,2.38406,1924.4,1924.3,3.2078]
[1742093682409,2.38406,1924.4,1923.9,1.3423]
[1742093682410,3.94296,1924.4,1924.1,3.2078]
[1742093682607,1.03937,1924.2,1924.1,3.2078]
[1742093683112,1.03942,1924.1,1924.0,1.03943]
[1742093684204,2.44399,1924.2,1924.1,1.03942]
[1742093684406,1.4046,1924.2,1924.1,1.03942]
[1742093687307,2.44397,1924.2,1924.1,1.03942]
[1742093688800,2.44397,1924.2,1924.0,1.4411]
[1742093689009,1.3721,1924.1,1924.0,2.48058]
[1742093696420,2.41152,1924.1,1924.0,2.48058]
[1742093696610,3.10002,1924.1,1924.0,1.4411]
[1742093696812,3.10002,1924.1,1924.0,1.03948]
[1742093697313,3.10002,1924.1,1923.9,5.58961]
[1742093697314,3.10006,1924.1,1923.9,5.58961]
[1742093697521,2.1488,1924.0,1923.9,5.58961]
[1742093700514,3.18828,1924.0,1923.9,4.5501]
[1742093700720,3.18828,1924.0,1923.9,3.2078]
[1742093705617,3.18828,1924.0,1923.9,4.24733]
[1742093705915,3.18828,1924.0,1923.9,3.2078]
[1742093711820,3.18828,1924.0,1923.9,4.5534]
[1742093712318,3.18828,1924.0,1923.9,5.59293]
[1742093716930,2.1488,1924.0,1923.9,5.59293]
[1742093717425,1.4533,1924.0,1923.9,5.59293]
[1742093718432,1.03943,1924.1,1924.0,1.03944]
[1742093718627,1.0394,1924.2,1924.0,1.03944]
[1742093718822,4.24715,1924.3,1924.1,1.03942]
[1742093719128,3.2078,1924.3,1924.1,1.03942]
[1742093719430,1.03937,1924.2,1924.1,1.03942]
[1742093719630,2.46967,1924.2,1924.1,1.03942]
[1742093720630,2.46967,1924.2,1924.1,1.75252]
[1742093721227,2.46967,1924.2,1924.1,0.7131]
[1742093722118,1.03948,1924.0,1923.9,3.2078]
[1742093722324,1.03948,1924.0,1923.9,5.58753]
[1742093722737,2.43238,1924.0,1923.9,4.548]
[1742093723033,2.43238,1924.0,1923.9,5.58753]
[1742093723630,2.43238,1924.0,1923.9,3.2078]
[1742093725426,2.43238,1924.0,1923.9,4.5503]
[1742093726540,2.43238,1924.0,1923.9,3.2078]
[1742093728634,1.03964,1923.7,1923.6,3.2078]
[1742093728939,1.03964,1923.7,1923.6,4.5696]
[1742093729635,2.43744,1923.7,1923.6,4.5696]
[1742093729941,2.43744,1923.7,1923.6,5.60929]
[1742093731838,1.3978,1923.7,1923.6,5.60929]
[1742093733137,1.03954,1923.9,1923.8,1.03958]
[1742093733336,1.3159,1923.9,1923.8,1.03958]
[1742093733731,1.3159,1923.9,1923.8,1.73538]
[1742093734337,7.60125,1924.1,1923.8,0.6958]
[1742093734542,1.3159,1924.0,1923.9,2.457]
[1742093734733,2.35538,1924.0,1923.9,1.0395]
[1742093737827,1.3159,1924.0,1923.9,1.0395]
[1742093740643,2.35538,1924.0,1923.9,1.0395]
[1742093744147,1.3159,1924.0,1923.9,1.0395]
[1742093745343,1.3159,1924.0,1923.9,2.4902]
[1742093751047,1.3159,1924.0,1923.9,3.187]
[1742093755752,2.27569824,1924.3,1924.2,1.03937]
[1742093755951,1.3415,1924.3,1924.1,1.03939]
[1742093756145,2.38085,1924.3,1924.2,1.03937]
[1742093756752,1.03939,1924.2,1924.0,3.2078]
[1742093756944,1.3415,1924.3,1923.8,4.94315]
[1742093756945,1.03952,1924.0,1923.8,4.94315]
[1742093757146,0.6624,1923.9,1923.8,4.94315]
[1742093757453,2.6891,1923.9,1923.8,4.94315]
[1742093757956,2.6891,1923.9,1923.8,6.31345]
[1742093759242,2.6891,1923.9,1923.8,5.61765]
[1742093760356,3.72863,1923.9,1923.8,5.61765]
[1742093760751,2.59897,1923.8,1923.0,3.2078]
[1742093760957,7.9406,1923.7,1923.1,2.81054463]
[1742093761154,2.09149788,1923.6,1923.3,1.03982]
[1742093761348,1.3808,1923.5,1923.3,1.03982]
[1742093761555,2.42055,1923.5,1923.3,2.48452]
[1742093761861,1.3808,1923.5,1923.3,1.4447]
[1742093762060,1.03975,1923.5,1923.2,1.74827]
[1742093762357,1.0398,1923.4,1923.2,1.74827]
[1742093762555,0.673,1923.3,1923.2,1.74827]
[1742093762751,1.3926,1923.3,1923.2,0.7084]
[1742093762951,1.3926,1923.3,1923.2,1.74831]
[1742093763162,1.04750788,1923.6,1923.3,1.03982]
[1742093763357,2.44010788,1923.6,1923.4,2.362]
[1742093763549,2.44010788,1923.6,1923.4,1.0398]
[1742093763751,2.44010788,1923.6,1923.3,2.36201]
[1742093764261,1.03975,1923.5,1923.3,2.36201]
[1742093764956,2.44012788,1923.6,1923.3,2.36201]
[1742093765160,2.44012788,1923.6,1923.4,1.3222]
[1742093765858,1.03975,1923.5,1923.4,1.3222]
[1742093767758,2.44013788,1923.6,1923.4,2.362]
[1742093767965,1.03975,1923.5,1923.4,1.3222]
[1742093768653,2.44013788,1923.6,1923.4,2.362]
[1742093768849,1.03975,1923.5,1923.4,2.362]
[1742093769259,1.03975,1923.5,1923.4,1.3222]
[1742093770367,1.0398,1923.4,1923.3,3.2078]
[1742093771160,1.0398,1923.4,1923.3,4.6475]
[1742093771360,1.0398,1923.4,1923.3,4.24765]
[1742093771556,1.0398,1923.4,1923.3,5.58835]
[1742093772363,1.03978,1923.5,1923.3,5.58835]
[1742093772561,1.03978,1923.5,1923.4,2.3805]
[1742093773363,1.03978,1923.5,1923.4,1.3407]
[1742093774857,1.03978,1923.5,1923.4,2.3805]
[1742093775059,1.03978,1923.5,1923.4,1.3407]
[1742093775466,2.38648,1923.5,1923.4,1.3407]
[1742093775659,1.0398,1923.4,1923.2,0.7084]
[1742093775864,1.3467,1923.3,1923.2,2.0189]
[1742093776065,1.3467,1923.3,1923.2,3.05881]
[1742093776957,1.3467,1923.3,1923.2,1.03991]
[1742093777164,1.3467,1923.3,1923.2,2.35041]
[1742093778063,2.38655,1923.3,1923.1,4.95742]
[1742093778365,2.38655,1923.3,1923.2,1.3361]
[1742093778563,1.03985,1923.3,1923.2,1.3361]
[1742093778765,1.03991,1923.2,1923.1,4.95742]
[1742093778965,1.03991,1923.2,1923.1,6.29352]
[1742093779758,7.35267788,1923.6,1923.2,1.03991]
[1742093779759,1.03989,1923.3,1923.2,1.03991]
[1742093780259,1.03989,1923.3,1923.2,1.3361]
[1742093780868,1.03991,1923.2,1923.1,4.24776]
[1742093781167,2.41161,1923.2,1923.1,3.2078]
[1742093781468,2.41161,1923.2,1923.1,4.24776]
[1742093781862,2.41161,1923.2,1923.1,3.2078]
[1742093782868,2.41161,1923.2,1923.1,4.24776]
[1742093783067,2.41161,1923.2,1923.1,3.2078]
[1742093783660,2.41161,1923.2,1923.1,4.5264]
[1742093783970,2.41161,1923.2,1923.1,1.3186]
[1742093785666,2.60013,1923.0,1922.4,1.04029]
[1742093785968,1.04023,1922.6,1922.5,1.4066]
[1742093786757,6.74065698,1922.8,1922.5,1.4066]
[1742093786758,4.14031698,1922.8,1922.5,2.44689]
[1742093786969,1.04021,1922.7,1922.6,1.0402]
[1742093787271,1.04021,1922.7,1922.6,2.4106]
[1742093789663,4.24797,1922.8,1922.6,2.4106]
[1742093789971,4.24792,1922.8,1922.7,1.3353]
[1742093791871,1.368,1922.9,1922.7,1.3353]
[1742093792068,4.39409,1922.9,1922.8,1.04009]
[1742093792274,4.39409,1922.9,1922.8,2.41839]
[1742093792672,4.39409,1922.9,1922.8,1.3783]
[1742093792866,3.354,1922.9,1922.6,1.0402]
[1742093793174,1.04018,1922.7,1922.6,2.4835]
[1742093793677,1.04018,1922.7,1922.6,1.4433]
[1742093793878,1.04023,1922.6,1922.5,1.04028]
[1742093794478,1.0402,1922.7,1922.6,1.04023]
[1742093795285,1.04023,1922.6,1922.5,1.04025]
[1742093795471,1.04029,1922.5,1922.4,2.48361]
[1742093795777,2.36486,1922.6,1922.5,1.04029]
[1742093795973,2.36486,1922.6,1922.5,2.35049]
[1742093796169,1.3246,1922.6,1922.5,2.35049]
[1742093796373,2.36483,1922.6,1922.5,2.35049]
[1742093796980,2.36483,1922.6,1922.5,1.3102]
[1742093797278,1.04032,1922.5,1922.4,1.04034]
[1742093797471,2.46452,1922.5,1922.4,2.35054]
[1742093798079,1.4242,1922.5,1922.4,2.35054]
[1742093799184,1.75586,1922.8,1922.7,1.04018]
[1742093799375,1.74292,1922.9,1922.8,1.04012]
[1742093799571,5.09692,1922.9,1922.8,1.04012]
[1742093799770,3.2078,1923.0,1922.6,3.96343]
[1742093800077,1.04002,1923.0,1922.7,3.2078]
[1742093800483,2.0838,1922.9,1922.8,2.4732]
[1742093801182,1.3691,1922.9,1922.8,2.4732]
[1742093805288,1.3691,1922.9,1922.8,1.0401]
[1742093805585,2.0334,1922.9,1922.8,1.0401]
[1742093806281,3.07347,1922.9,1922.8,1.0401]
[1742093807588,3.07349,1922.9,1922.7,4.6565]
[1742093807787,1.4219,1922.8,1922.7,5.69668]
[1742093810576,2.46202,1922.8,1922.7,5.69668]
[1742093810781,3.14682,1922.8,1922.7,4.24798]
[1742093811287,2.1067,1922.8,1922.7,4.24798]
[1742093811488,3.14682,1922.8,1922.7,4.24798]
[1742093811886,3.14682,1922.8,1922.7,3.2078]
[1742093813492,6.50082,1922.8,1922.7,3.2078]
[1742093813988,6.50082,1922.8,1922.7,4.24798]
[1742093814483,6.50082,1922.8,1922.7,3.2078]
[1742093816394,1.04026,1922.6,1922.5,1.04026]
[1742093817084,3.02166,1922.6,1922.5,1.04026]
[1742093817287,1.9814,1922.6,1922.4,2.8271]
[1742093817591,2.0302,1922.5,1922.4,3.86744]
[1742093818597,3.07049,1922.5,1922.4,3.86744]
[1742093818788,3.07049,1922.5,1922.4,1.04034]
[1742093820390,1.04034,1922.4,1922.3,1.75909]
[1742093820696,2.37824,1922.4,1922.3,1.75909]
[1742093820896,2.37824,1922.4,1922.3,3.07729]
[1742093821489,1.04039,1922.3,1922.2,4.24823]
[1742093821689,3.06249,1922.3,1922.2,3.2078]
[1742093821890,2.0221,1922.3,1922.2,4.24825]
[1742093822195,1.3379,1922.3,1922.2,4.24825]
[1742093822901,1.3379,1922.3,1922.2,4.91745]
[1742093824099,2.37829,1922.3,1922.2,4.24825]
[1742093824599,2.37829,1922.3,1922.2,5.67235]
[1742093824991,2.37829,1922.3,1922.2,4.6319]
[1742093825192,2.37829,1922.3,1922.2,5.67235]
[1742093825399,2.37829,1922.3,1922.2,4.24825]
[1742093825595,2.37829,1922.3,1922.2,5.67235]
[1742093825902,2.37829,1922.3,1922.2,2.46455]
[1742093826293,1.3379,1922.3,1922.2,2.46455]
[1742093827402,1.04045,1922.2,1922.1,1.74157]
[1742093827702,1.04045,1922.2,1922.1,2.0323]
[1742093828102,1.75875,1922.2,1922.1,2.0323]
[1742093828299,1.75875,1922.2,1922.1,3.0728]
[1742093829600,1.75875,1922.2,1922.0,1.0263]
[1742093829799,1.75875,1922.2,1921.2,9.916]
[1742093829800,18.3335,1922.1,1921.1,3.2078]
[1742093830009,3.2078,1921.6,1921.3,0.7049]
[1742093830302,6.5748,1921.6,1921.4,2.39404]
[1742093830499,6.5748,1921.6,1921.5,1.3532]
[1742093830706,6.5748,1921.6,1921.5,2.0254]
[1742093831603,4.40777,1921.6,1921.5,2.0254]
[1742093831801,3.367,1921.6,1921.5,2.0254]
[1742093832004,4.40777,1921.6,1921.5,2.0254]
[1742093832804,5.74457,1921.6,1921.5,2.0254]
[1742093833198,8.95237,1921.6,1921.5,1.3532]
[1742093833400,7.9116,1921.6,1921.3,1.74581]
[1742093833703,2.37764,1921.5,1921.4,0.6823]
[1742093833906,1.3368,1921.5,1921.4,1.72318]
[1742093834101,2.37763,1921.5,1921.4,0.6823]
[1742093834797,1.3368,1921.5,1921.4,1.72318]
[1742093835003,6.5748,1921.6,1921.4,0.6823]
[1742093835299,4.7038,1921.6,1921.5,1.04083]
[1742093836805,4.7038,1921.6,1921.5,2.49193]
[1742093838307,1.3368,1921.6,1921.5,2.49193]
[1742093838503,4.24849,1921.8,1921.6,1.04076]
[1742093838703,7.61348,1921.8,1921.6,1.04074]
[1742093838904,9.00148,1921.8,1921.7,0.7118]
[1742093839301,4.5958,1921.8,1921.7,1.75252]
[1742093839509,5.63647,1921.8,1921.7,0.7118]
[1742093840105,2.42867,1921.8,1921.7,0.7118]
[1742093841001,1.388,1921.8,1921.7,0.7118]
[1742093841508,1.388,1921.8,1921.7,1.75252]
[1742093849503,4.2484,1922.0,1921.9,1.04061]
[1742093850009,4.2484,1922.0,1921.7,0.7118]
[1742093850309,4.24836,1922.0,1921.9,1.04061]
[1742093850511,3.2078,1922.0,1921.9,1.04061]
[1742093850699,1.3603,1922.0,1921.9,1.04061]
[1742093850901,6.5648,1922.2,1922.1,1.0405]
[1742093851307,7.60525,1922.2,1922.1,1.0405]
[1742093851607,3.2078,1923.3,1922.2,5.20223]
[1742093851811,1.3616,1923.2,1923.1,1.03996]
[1742093852012,2.7219,1923.2,1923.1,1.03996]
[1742093855006,3.76182,1923.2,1923.0,0.00779788]
[1742093855211,1.03996,1923.1,1923.0,0.00779788]
[1742093855415,2.48396,1923.1,1923.0,0.00779788]
[1742093855809,1.444,1923.1,1923.0,0.00779788]
[1742093856011,1.444,1923.1,1923.0,1.04781788]
[1742093856405,1.444,1923.1,1923.0,0.00779788]
[1742093856909,0.00779788,1923.3,1923.2,1.03991]
[1742093858217,1.41049788,1923.3,1923.2,1.03991]
[1742093860818,1.41049788,1923.3,1923.2,4.24771]
[1742093862512,0.00779788,1923.3,1923.2,4.24771]
[1742093862714,0.00779788,1923.3,1923.2,4.90961]
[1742093863612,0.00779788,1923.3,1923.2,4.24771]
[1742093864409,0.68629788,1923.3,1923.2,4.24771]
[1742093866314,0.00779788,1923.3,1923.2,4.24771]
[1742093866519,1.3911,1923.7,1923.6,1.03969]
[1742093867415,1.3911,1923.7,1923.6,2.43089]
[1742093873926,0.71809788,1923.8,1923.7,1.03964]
[1742093874120,2.12559788,1923.8,1923.7,2.48394]
[1742093874520,1.41529788,1923.8,1923.7,2.48394]
[1742093879530,1.41529788,1923.8,1923.7,5.69174]
[1742093885539,1.41529788,1923.8,1923.7,4.24744]
[1742093894251,2.45487788,1923.8,1923.7,4.24744]
[1742093894453,1.41529788,1923.8,1923.7,4.24744]
[1742093894846,2.45487788,1923.8,1923.7,4.24744]
[1742093895043,1.41529788,1923.8,1923.7,4.24744]
[1742093895654,2.45487788,1923.8,1923.7,4.24744]
[1742093896155,1.41529788,1923.8,1923.7,4.24744]
[1742093897953,2.45487788,1923.8,1923.7,4.24744]
[1742093898360,0.00779788,1923.8,1923.7,4.24744]
[1742093898859,1.37169788,1923.8,1923.7,5.66114]
[1742093901158,1.37169788,1923.8,1923.7,2.45334]
[1742093902361,2.41127788,1923.8,1923.7,2.45334]
[1742093903757,1.37169788,1923.8,1923.7,2.45334]
[1742093906560,2.41127788,1923.8,1923.7,2.45334]
[1742093906963,1.37169788,1923.8,1923.7,2.45334]
[1742093909867,1.37169788,1923.8,1923.7,5.66114]
[1742093919666,0.00779788,1923.8,1923.7,5.66114]
[1742093922569,0.93154289,1924.1,1923.7,5.66114]
[1742093922777,3.2078,1924.2,1924.1,1.03942]
[1742093923879,4.6368,1924.2,1924.1,1.03942]
[1742093925581,1.429,1924.2,1924.1,1.03942]
[1742093926179,1.429,1924.2,1924.1,2.45162]
[1742093932881,2.40992788,1924.3,1924.1,2.45162]
[1742093932882,0.00779788,1924.3,1924.2,1.03937]
[1742093933581,0.70649788,1924.3,1924.2,1.03937]
[1742093933886,1.74580788,1924.3,1924.2,1.03937]
[1742093934089,3.13970788,1924.3,1924.2,1.03937]
[1742093934581,2.10039788,1924.3,1924.2,1.03937]
[1742093934979,2.10039788,1924.3,1924.2,2.45277]
[1742093936383,3.13970788,1924.3,1924.2,2.45277]
[1742093936794,2.10039788,1924.3,1924.2,2.45277]
[1742093936985,3.13970788,1924.3,1924.2,2.45277]
[1742093938889,3.13970788,1924.3,1924.1,4.91937788]
[1742093939086,2.0087,1924.2,1924.1,6.33007788]
[1742093939988,3.04807,1924.2,1924.1,0.00779788]
[1742093942283,3.04807,1924.2,1924.1,1.04721788]
[1742093945787,3.04807,1924.2,1924.1,0.00779788]
[1742093946189,3.04807,1924.2,1924.1,1.36299788]
[1742093946591,3.04807,1924.2,1924.1,2.40241788]
[1742093947290,3.04807,1924.2,1924.1,1.36299788]
[1742093951301,1.03948,1924.0,1923.9,3.2078]
[1742093951996,1.72628,1924.0,1923.9,3.2078]
[1742093956498,1.72628,1924.0,1923.9,4.6352]
[1742093959293,1.72628,1924.0,1923.9,1.4274]
[1742093959495,1.03953,1923.9,1923.8,3.88669788]
[1742093959709,3.10153,1923.9,1923.8,3.88669788]
[1742093959895,3.10153,1923.9,1923.8,5.20629788]
[1742093960706,3.10153,1923.9,1923.8,3.21559788]
[1742093961804,3.10153,1923.9,1923.8,0.00779788]
[1742093963102,3.10153,1923.9,1923.8,1.33759788]
[1742093968407,3.10153,1923.9,1923.8,0.00779788]
[1742093969409,1.03975,1923.5,1923.4,4.90827]
[1742093969607,1.03975,1923.5,1923.4,3.8685]
[1742093969803,1.03975,1923.5,1923.4,4.9083]
[1742093970004,1.03975,1923.5,1923.4,3.8685]
[1742093970806,2.40325,1923.5,1923.4,5.3226]
[1742093971704,2.40325,1923.5,1923.4,6.3624]
[1742093972603,2.40325,1923.5,1923.4,1.4541]
[1742093972808,1.0398,1923.4,1923.3,0.00779788]
[1742093973006,2.3836,1923.4,1923.3,1.36589788]
[1742093977915,2.3836,1923.4,1923.3,0.00779788]
[1742093978117,2.3836,1923.4,1923.3,1.36779788]
[1742093981108,1.03985,1923.3,1923.2,1.3498]
[1742093981310,3.86355,1923.3,1923.2,1.3498]
[1742093991428,3.86355,1923.3,1923.2,1.3498]
[1742093997540,3.86355,1923.3,1923.1,0.6981]
[1742093997541,1.03991,1923.2,1923.1,0.6981]
[1742093997739,2.45541,1923.2,1923.1,2.0872]
[1742093999732,2.45541,1923.2,1923.1,3.12716]
[1742094000235,1.97295882,1923.3,1923.2,1.03991]
[1742094000443,2.36049,1923.3,1923.2,3.19281]
[1742094001343,2.36049,1923.3,1923.2,1.4503]
[1742094001532,3.05739,1923.3,1923.2,1.4503]
[1742094003635,1.03991,1923.2,1923.1,0.6981]
[1742094003840,2.44681,1923.2,1923.1,2.049]
[1742094007846,1.03996,1923.1,1923.0,4.24782]
[1742094008146,2.37106,1923.1,1923.0,3.2078]
[1742094008344,1.04002,1923.0,1922.9,0.7023]
[1742094009234,1.04002,1923.0,1922.9,3.17317]
[1742094010046,1.04002,1923.0,1922.9,2.1331]
[1742094010943,1.04002,1923.0,1922.9,3.17317]
[1742094012248,2.3534,1923.1,1923.0,1.04002]
[1742094012446,2.3534,1923.1,1923.0,5.68382]
[1742094012647,1.3134,1923.1,1923.0,5.68382]
[1742094014237,2.35336,1923.1,1923.0,4.6438]
[1742094014444,2.35336,1923.1,1923.0,1.436]
[1742094014946,2.35336,1923.1,1922.9,0.7023]
[1742094014947,1.04002,1923.0,1922.9,2.1383]
[1742094015243,3.21572,1923.0,1922.9,2.1383]
[1742094015847,3.21572,1923.0,1922.9,1.436]
[1742094021059,1.04007,1922.9,1922.8,3.2078]
[1742094021259,1.04007,1922.9,1922.8,4.6295]
[1742094021260,3.18037,1922.9,1922.8,4.6295]
[1742094021953,2.1403,1922.9,1922.6,0.6908]
[1742094022143,4.6452,1922.8,1922.5,1.4217]
[1742094022345,1.4374,1922.7,1922.5,1.4217]
[1742094022547,2.1135,1922.7,1922.5,2.46197]
[1742094022741,2.1135,1922.7,1922.5,2.46199]
[1742094022742,3.15372,1922.7,1922.5,2.46199]
[1742094023044,0.6761,1922.7,1922.6,2.46193]
[1742094023247,1.04018,1922.7,1922.6,1.4217]
[1742094024155,1.04028,1922.6,1922.4,1.04032]
[1742094024355,1.04028,1922.6,1922.5,1.4041]
[1742094027653,4.81696882,1922.8,1922.3,1.04038]
[1742094027857,7.41731882,1922.8,1922.2,3.2078]
[1742094028049,1.04034,1922.4,1922.3,1.3098]
[1742094029347,1.04034,1922.4,1922.3,2.35019]
[1742094030553,2.42253,1922.5,1922.3,2.35019]
[1742094030760,2.42253,1922.5,1922.4,1.4002]
[1742094030962,1.3822,1922.5,1922.4,2.44054]
[1742094031256,3.357,1922.6,1922.4,2.44053]
[1742094031455,4.39723,1922.6,1922.5,1.4002]
[1742094035561,5.74763,1922.6,1922.5,1.4002]
[1742094036656,1.3504,1922.6,1922.5,2.44049]
[1742094036961,3.2078,1923.0,1922.5,4.5566]
[1742094037260,2.41221,1922.9,1922.8,1.04012]
[1742094037458,1.3721,1922.9,1922.8,1.04012]
[1742094037959,2.41217,1922.9,1922.8,3.14342]
[1742094038455,1.3721,1922.9,1922.8,3.14342]
[1742094039550,2.41217,1922.9,1922.8,3.14342]
[1742094041969,2.41217,1922.9,1922.8,2.1033]
[1742094042759,2.41217,1922.9,1922.8,3.14342]
[1742094042964,2.41217,1922.9,1922.8,2.1033]
[1742094044264,1.3721,1922.9,1922.8,3.14342]
[1742094044566,2.41217,1922.9,1922.8,3.14342]
[1742094045466,1.3721,1922.9,1922.8,3.14342]
[1742094047472,2.41217,1922.9,1922.8,3.14342]
[1742094047670,1.3721,1922.9,1922.8,3.14342]
[1742094048465,2.41217,1922.9,1922.8,3.14342]
[1742094049061,1.3721,1922.9,1922.8,3.14342]
[1742094049271,2.41217,1922.9,1922.8,3.14342]
[1742094049862,2.41217,1922.9,1922.8,6.35122]
[1742094050772,2.41217,1922.9,1922.8,3.14342]
[1742094051273,1.3721,1922.9,1922.6,3.2078]
[1742094051569,1.04018,1922.7,1922.6,5.60122]
[1742094051869,1.04018,1922.7,1922.6,4.24802]
[1742094052066,2.48818,1922.7,1922.6,4.24802]
[1742094052269,2.48818,1922.7,1922.6,3.2078]
[1742094052473,2.48818,1922.7,1922.4,4.5443]
[1742094052668,2.48823,1922.6,1922.5,1.04029]
[1742094053567,1.448,1922.6,1922.5,1.04029]
[1742094055974,1.75157,1922.8,1922.4,7.14515]
[1742094056170,1.3121,1922.7,1922.6,1.04023]
[1742094058467,2.35228,1922.7,1922.6,1.04023]
[1742094061168,1.04023,1922.6,1922.5,4.24806]
[1742094061375,2.44323,1922.6,1922.5,4.24806]
[1742094062376,2.44323,1922.6,1922.5,3.2078]
[1742094065779,2.44323,1922.6,1922.5,4.6395]
[1742094069278,2.44323,1922.6,1922.5,1.4317]
[1742094069479,2.44323,1922.6,1922.5,2.47199]
[1742094070279,1.403,1922.6,1922.5,2.47199]